bitfinex-derivatives/quotes_SOLF0:USTF0_20250221
["timestamp","ask_amount","ask_price","bid_price","bid_amount"]
[1740170545338,0.04045354,169.17,169.13,0.03978344]
[1740170547044,0.04045354,169.17,169.15,5.9146]
[1740170548149,0.04045354,169.17,169.14,5.9149]
[1740170548551,0.04045354,169.17,169.13,0.03978344]
[1740170548942,5.95455354,169.17,169.13,0.03978344]
[1740170549248,0.04045354,169.17,169.13,0.03978344]
[1740170549649,0.04045354,169.17,169.14,5.9148]
[1740170551050,5.95455354,169.17,169.13,5.95498344]
[1740170551252,5.95455354,169.17,169.13,0.03978344]
[1740170551552,5.95455354,169.17,169.13,5.95508344]
[1740170551752,0.04045354,169.17,169.13,0.03978344]
[1740170551953,9.67496643,169.16,169.13,0.03978344]
[1740170552151,5.9147,169.15,169.13,0.03978344]
[1740170552356,9.67496643,169.16,169.13,0.03978344]
[1740170552855,9.67496643,169.14,169.07,4.99]
[1740170553657,5.916,169.12,169.08,5.917]
[1740170553852,9.67496643,169.14,169.07,4.99]
[1740170554052,0.04063739,169.12,169.08,0.04522457]
[1740170554555,9.71560382,169.12,169.08,0.04522457]
[1740170554857,5.9162,169.11,169.08,0.04522457]
[1740170555445,9.71560382,169.12,169.08,0.04522457]
[1740170555651,9.67496643,169.1,169.08,0.04522457]
[1740170555846,9.67496643,169.1,169.0,59.39890141]
[1740170556146,9.67496643,169.07,169.0,59.39890141]
[1740170556656,9.67496643,169.09,169.01,9.67496643]
[1740170557156,0.04216103,169.07,169.03,0.0427709]
[1740170557649,0.04216103,169.07,169.06,5.9177]
[1740170573466,11.46436643,169.15,169.05,9.67496643]
[1740170573662,17.37936643,169.15,169.05,9.67496643]
[1740170574066,17.37936643,169.15,169.11,5.9161]
[1740170574469,5.9154,169.13,169.05,9.67496643]
[1740170574761,5.9154,169.13,169.11,0.03777326]
[1740170575066,5.9154,169.13,169.1,0.04034386]
[1740170575265,5.95389955,169.14,169.1,0.04034386]
[1740170575467,0.03869955,169.14,169.11,5.916]
[1740170575766,5.95379955,169.14,169.1,0.04034386]
[1740170575964,0.03869955,169.14,169.11,5.9161]
[1740170576267,0.03869955,169.14,169.1,0.04034386]
[1740170576467,5.95379955,169.14,169.1,0.04034386]
[1740170576670,0.03869955,169.14,169.1,0.04034386]
[1740170577166,0.03869955,169.14,169.11,5.916]
[1740170577466,0.03869955,169.14,169.1,0.04034386]
[1740170577668,5.95409955,169.14,169.1,5.95664386]
[1740170578864,0.03869955,169.14,169.1,0.04034386]
[1740170580067,5.95399955,169.14,169.1,5.95654386]
[1740170580263,0.03869955,169.14,169.1,0.04034386]
[1740170580863,0.03869955,169.14,169.11,5.9159]
[1740170581668,5.9155,169.13,169.1,0.04034386]
[1740170581968,0.03869955,169.14,169.1,0.04034386]
[1740170582169,5.916,169.12,169.1,0.04034386]
[1740170582364,0.03869955,169.14,169.1,0.04034386]
[1740170583571,0.03869955,169.14,169.11,5.916]
[1740170583771,0.03869955,169.14,169.1,0.04034386]
[1740170584070,0.03869955,169.14,169.13,5.9154]
[1740170584870,0.03869955,169.14,169.12,5.9156]
[1740170585572,0.03869955,169.14,169.13,5.9154]
[1740170589474,9.67496643,169.2,169.16,5.9141]
[1740170589768,162.81084671,169.25,169.14,9.67496643]
[1740170589974,9.67496643,169.21,169.1,203.53836643]
[1740170590176,9.67496643,169.21,169.11,3.9272078]
[1740170590370,9.67496643,169.21,169.12,3.9272078]
[1740170590571,0.03735564,169.18,169.14,0.04446794]
[1740170591076,15.58906643,169.17,169.14,0.04446794]
[1740170591275,9.67496643,169.15,169.14,0.04446794]
[1740170591475,9.67496643,169.17,169.14,0.04446794]
[1740170591774,0.03735564,169.18,169.14,0.04446794]
[1740170592171,0.03735564,169.18,169.17,5.914]
[1740170593676,1.8485,169.25,169.21,5.9125]
[1740170593881,1.8485,169.25,169.17,9.67496643]
[1740170594178,1.8155,169.27,169.23,5.9118]
[1740170594582,1.8155,169.27,169.17,9.67496643]
[1740170594782,1.85327788,169.27,169.23,0.03766863]
[1740170595079,5.9109,169.26,169.21,5.9123]
[1740170595277,5.9109,169.26,169.15,5.51696941]
[1740170595278,1.85597129,169.27,169.23,0.04230719]
[1740170595581,1.8155,169.27,169.16,5.51696941]
[1740170595782,1.8155,169.27,169.23,0.04356362]
[1740170596182,16.11463457,169.26,169.16,5.51696941]
[1740170596476,5.9126,169.21,169.16,5.9142]
[1740170596780,5.9126,169.21,169.13,0.8384]
[1740170596981,1.8155,169.27,169.14,15.10225232]
[1740170597180,1.8155,169.27,169.14,15.52315232]
[1740170597481,1.8155,169.27,169.19,0.03873916]
[1740170597482,0.04358891,169.22,169.19,0.03873916]
[1740170597680,0.04358891,169.22,169.21,5.9125]
[1740170598878,1.8354,169.29,169.26,5.9109]
[1740170599180,1.7986,169.31,169.26,5.9109]
[1740170599573,1.694,169.34,169.27,5.9103]
[1740170599772,1.01205113,169.33,169.27,5.9103]
[1740170599980,5.9087,169.33,169.27,5.9103]
[1740170600181,0.04453131,169.32,169.28,0.04452314]
[1740170602380,0.04453131,169.32,169.29,5.9097]
[1740170604478,0.04453131,169.32,169.28,0.04452314]
[1740170604783,0.04453131,169.32,169.31,5.9091]
[1740170605184,3.131e-05,169.32,169.31,5.9091]
[1740170605383,4.64,169.38,169.29,16.81765232]
[1740170606581,0.04111233,169.35,169.32,0.04382101]
[1740170606889,0.04111233,169.35,169.34,5.9081]
[1740170607083,4.64,169.38,169.32,15.14607333]
[1740170607387,5.2387,169.45,169.39,5.9063]
[1740170607887,1.01132618,169.44,169.39,5.9063]
[1740170608089,1.01132618,169.46,169.39,5.9063]
[1740170608284,15.10225232,169.47,169.39,5.9063]
[1740170608488,15.10225232,169.47,169.41,0.04047729]
[1740170608489,5.9049,169.43,169.41,0.04047729]
[1740170608789,15.10225232,169.47,169.32,15.10225232]
[1740170609082,5.94517592,169.44,169.4,0.04264407]
[1740170609981,0.04047592,169.44,169.4,5.94854407]
[1740170610287,0.04047592,169.44,169.4,0.04264407]
[1740170610684,0.04047592,169.44,169.41,5.9056]
[1740170611289,0.04047592,169.44,169.42,6.57]
[1740170611587,0.04047592,169.44,169.42,12.475]
[1740170612182,0.04047592,169.44,169.42,6.57]
[1740170613377,0.04047592,169.44,169.42,12.4753]
[1740170613577,0.04047592,169.44,169.42,6.57]
[1740170614789,0.04047592,169.44,169.43,5.9049]
[1740170615690,0.04047592,169.44,169.42,12.4752]
[1740170616289,0.04047592,169.44,169.42,6.57]
[1740170617188,0.04047592,169.44,169.42,12.4752]
[1740170618388,0.04047592,169.44,169.42,6.57]
[1740170619091,0.04047592,169.44,169.42,12.4753]
[1740170619583,0.04047592,169.44,169.42,6.57]
[1740170619789,0.04047592,169.44,169.43,5.9049]
[1740170620185,7.592e-05,169.44,169.43,5.9049]
[1740170625895,9.9366,169.52,169.42,6.57]
[1740170626792,9.9366,169.52,169.44,15.10225232]
[1740170627098,0.03744878,169.5,169.46,0.04061497]
[1740170627489,0.03744878,169.5,169.47,5.9035]
[1740170627890,0.03744878,169.5,169.46,0.04061497]
[1740170628994,0.03744878,169.5,169.47,5.9035]
[1740170629195,0.03744878,169.5,169.46,0.04061497]
[1740170629696,5.93994878,169.5,169.46,0.04061497]
[1740170630298,0.03744878,169.5,169.46,5.94451497]
[1740170630494,0.03744878,169.5,169.46,0.04061497]
[1740170632194,5.2363,169.57,169.46,0.04061497]
[1740170632494,1.0105746,169.56,169.44,15.10225232]
[1740170632701,5.2363,169.57,169.45,5.9041]
[1740170633195,5.9018,169.53,169.45,5.9041]
[1740170633502,5.94581509,169.53,169.49,0.0430572]
[1740170633802,5.9019,169.52,169.49,0.0430572]
[1740170634095,0.04401509,169.53,169.49,0.0430572]
[1740170637000,0.04401509,169.53,169.49,5.9458572]
[1740170638404,0.04401509,169.53,169.49,0.0430572]
[1740170639205,0.04401509,169.53,169.42,6.57]
[1740170639398,15.10225232,169.52,169.42,6.57]
[1740170639993,15.10225232,169.49,169.42,6.57]
[1740170640196,3.4604,169.48,169.42,6.57]
[1740170640398,0.04066282,169.47,169.44,0.04116785]
[1740170640700,0.04066282,169.47,169.42,0.9454]
[1740170640895,5.9049,169.43,169.4,0.76960331]
[1740170641702,5.9053,169.42,169.4,0.81111183]
[1740170641907,0.04411904,169.43,169.4,0.81111183]
[1740170642297,5.9056,169.41,169.4,0.81111183]
[1740170642798,5.9066,169.39,169.34,5.9079]
[1740170643205,15.10225232,169.43,169.29,15.10225232]
[1740170644005,0.03872218,169.38,169.34,0.04086724]
[1740170644506,0.03872218,169.38,169.28,31.95189254]
[1740170644507,0.03872218,169.38,169.28,37.86199254]
[1740170644706,0.03872218,169.38,169.28,5.9101]
[1740170644902,5.9091,169.31,169.27,59.30727438]
[1740170645308,15.10225232,169.37,169.27,59.30727438]
[1740170645513,0.03966506,169.31,169.27,59.34624499]
[1740170646609,0.03966506,169.31,169.27,0.03897061]
[1740170647612,5.94886506,169.31,169.27,0.03897061]
[1740170647813,0.03966506,169.31,169.27,0.03897061]
[1740170648019,1.8735,169.3,169.27,0.03897061]
[1740170650113,1.8735,169.3,169.27,5.94947061]
[1740170650314,0.03966506,169.31,169.27,0.03897061]
[1740170651116,6.506e-05,169.31,169.29,15.10225232]
[1740170651618,6.506e-05,169.31,169.3,5.9095]
[1740170657319,8.32,169.41,169.36,5.9074]
[1740170658419,0.0398613,169.4,169.37,0.03775748]
[1740170659225,0.0398613,169.4,169.37,5.94475748]
[1740170659717,0.0398613,169.4,169.38,5.9064]
[1740170660117,0.0398613,169.4,169.37,0.03775748]
[1740170660322,0.0398613,169.4,169.38,5.9064]
[1740170660925,0.0398613,169.4,169.37,0.03775748]
[1740170661724,0.0398613,169.4,169.39,5.9063]
[1740170664425,6.13e-05,169.4,169.39,5.9063]
[1740170669125,5.2896,169.48,169.37,20.4865098]
[1740170669326,217.40225232,169.58,169.43,15.10225232]
[1740170669527,5.3537,169.54,169.43,15.10225232]
[1740170669724,1.0107565,169.53,169.43,15.10225232]
[1740170670025,1.0107565,169.53,169.48,5.9029]
[1740170670233,5.3537,169.54,169.43,15.10225232]
[1740170670435,5.9471416,169.52,169.49,0.0405658]
[1740170671735,0.0453416,169.52,169.49,0.0405658]
[1740170671934,5.9022,169.51,169.49,0.0405658]
[1740170672233,0.0453416,169.52,169.49,0.0405658]
[1740170672634,5.9025,169.5,169.49,0.0405658]
[1740170674630,0.0453416,169.52,169.38,15.87187441]
[1740170674824,1.01086631,169.53,169.38,15.87187441]
[1740170675024,1.01086631,169.53,169.44,5.9043]
[1740170675230,5.9031,169.49,169.44,5.9043]
[1740170675531,5.9031,169.49,169.38,15.87187441]
[1740170675731,0.04440188,169.48,169.45,5.94361399]
[1740170676031,0.04440188,169.48,169.45,0.03941399]
[1740170676725,0.04440188,169.48,169.47,5.9035]
[1740170684737,3.483,169.54,169.47,15.10225232]
[1740170685837,3.483,169.54,169.51,5.9019]
[1740170686139,0.04334755,169.52,169.49,0.03931746]
[1740170686730,0.04334755,169.52,169.5,5.9024]
[1740170687143,0.04334755,169.52,169.49,0.03931746]
[1740170688641,1.7144,169.59,169.51,15.10225232]
[1740170688940,1.01037292,169.58,169.51,15.10225232]
[1740170689441,1.7144,169.59,169.51,15.10225232]
[1740170689845,0.03804694,169.57,169.53,0.03988005]
[1740170699861,0.03804694,169.57,169.54,15.10225232]
[1740170703659,0.03804694,169.57,169.53,0.03988005]
[1740170704866,5.9011,169.54,169.53,0.03988005]
[1740170705067,5.3834,169.56,169.53,0.03988005]
[1740170705568,11.284,169.56,169.53,0.03988005]
[1740170705867,5.3834,169.56,169.53,0.03988005]
[1740170706068,11.2838,169.56,169.53,0.03988005]
[1740170706365,5.3834,169.56,169.53,0.03988005]
[1740170706758,5.901,169.55,169.53,0.03988005]
[1740170706956,5.3834,169.56,169.46,15.10225232]
[1740170707366,5.3834,169.56,169.44,126.28]
[1740170707567,1.0105954,169.55,169.44,141.38225232]
[1740170707964,5.9017,169.53,169.44,141.38225232]
[1740170708270,0.04097758,169.51,169.48,0.04323503]
[1740170711268,5.9027,169.5,169.48,0.04323503]
[1740170711868,0.04097758,169.51,169.48,0.04323503]
[1740170712472,5.9028,169.49,169.48,0.04323503]
[1740170712771,0.04097758,169.51,169.41,59.2625851]
[1740170712970,5.9046,169.44,169.41,59.2625851]
[1740170713369,1.7574,169.47,169.41,59.2625851]
[1740170713770,0.03863826,169.46,169.42,0.04122556]
[1740170713966,0.03863826,169.46,169.38,0.76962209]
[1740170714168,5.906,169.4,169.38,0.76962209]
[1740170714372,1.7574,169.47,169.38,0.76962209]
[1740170714571,1.011239,169.46,169.38,0.76962209]
[1740170714764,5.9043,169.45,169.38,15.87187441]
[1740170714968,1.7574,169.47,169.38,15.87187441]
[1740170715169,0.04071675,169.43,169.4,0.04070664]
[1740170715871,0.04071675,169.43,169.41,5.79]
[1740170717068,5.9053,169.42,169.41,5.79]
[1740170718473,0.04071675,169.43,169.4,0.04070664]
[1740170718668,5.9056,169.41,169.4,0.04070664]
[1740170718873,0.04071675,169.43,169.28,15.10225232]
[1740170719072,1.01140722,169.44,169.28,15.10225232]
[1740170719274,2.79120722,169.44,169.28,15.10225232]
[1740170719472,1.01140722,169.43,169.28,15.10225232]
[1740170719976,0.04470002,169.39,169.35,5.94738828]
[1740170720278,5.9069,169.38,169.35,0.03968828]
[1740170720777,0.04470002,169.39,169.35,0.03968828]
[1740170721478,5.9074,169.36,169.35,0.03968828]
[1740170721674,0.04470002,169.39,169.29,1.6925]
[1740170721976,209.10225232,169.42,169.28,0.77012389]
[1740170721977,5.9079,169.35,169.28,0.77012389]
[1740170722478,209.10225232,169.42,169.28,0.77012389]
[1740170722678,195.01151164,169.41,169.28,0.77012389]
[1740170722976,0.03859337,169.37,169.33,0.04174835]
[1740170723879,5.9083,169.34,169.33,0.04174835]
[1740170724079,0.03859337,169.37,169.28,0.77012389]
[1740170724281,5.9085,169.33,169.29,5.9095]
[1740170724679,3.6183,169.39,169.28,0.77012389]
[1740170724874,1.01170382,169.38,169.28,0.77012389]
[1740170725074,3.6183,169.39,169.28,0.77012389]
[1740170725274,0.04105677,169.35,169.31,0.04466147]
[1740170725577,5.9086,169.33,169.31,0.04466147]
[1740170726377,5.9088,169.32,169.31,0.04466147]
[1740170726575,15.14330909,169.35,169.2,15.10225232]
[1740170726881,15.10225232,169.35,169.22,59.3258552]
[1740170727183,1.01188218,169.34,169.22,59.3258552]
[1740170727481,9.31188218,169.34,169.22,59.3258552]
[1740170727681,8.3,169.34,169.22,59.3258552]
[1740170727877,0.04070548,169.3,169.26,0.03889395]
[1740170729081,0.04070548,169.3,169.26,5.94959395]
[1740170729483,0.04070548,169.3,169.26,0.03889395]
[1740170729679,0.04070548,169.3,169.26,5.94949395]
[1740170729983,0.04070548,169.3,169.26,15.14114627]
[1740170730176,0.04070548,169.3,169.28,5.9102]
[1740170730778,0.04070548,169.3,169.29,5.9098]
[1740170731583,0.04070548,169.3,169.26,15.14114627]
[1740170731784,0.04070548,169.3,169.28,5.9101]
[1740170731977,0.04070548,169.3,169.26,15.14114627]
[1740170732179,0.04070548,169.3,169.26,0.03889395]
[1740170735483,0.04070548,169.3,169.28,5.9099]
[1740170735686,0.04070548,169.3,169.26,0.03889395]
[1740170736280,0.04070548,169.3,169.27,5.9102]
[1740170736482,0.04070548,169.3,169.26,0.03889395]
[1740170736984,0.04070548,169.3,169.26,15.14114627]
[1740170737382,4.65,169.36,169.29,15.10225232]
[1740170737780,4.65,169.36,169.34,5.9078]
[1740170737986,4.65,169.36,169.29,15.10225232]
[1740170738186,1.8042,169.38,169.29,15.10225232]
[1740170738588,0.04231797,169.35,169.32,0.04486866]
[1740170739087,0.04231797,169.35,169.34,5.908]
[1740170739987,1.7578,169.44,169.32,15.14712098]
[1740170740188,3.6307,169.44,169.32,15.10225232]
[1740170740983,0.04244348,169.4,169.37,5.9069]
[1740170741288,0.04244348,169.4,169.36,0.03946462]
[1740170741686,0.04244348,169.4,169.37,5.9069]
[1740170742090,0.04244348,169.4,169.39,5.9063]
[1740170745898,15.10225232,169.54,169.38,15.10225232]
[1740170746090,9.31096519,169.53,169.41,15.10225232]
[1740170746297,1.01096519,169.52,169.41,15.10225232]
[1740170746793,1.01096519,169.52,169.46,5.9037]
[1740170746993,0.03884278,169.48,169.46,5.9037]
[1740170747194,0.03884278,169.48,169.45,0.04351802]
[1740170747390,0.03884278,169.48,169.47,5.9035]
[1740170747793,0.03884278,169.48,169.45,0.04351802]
[1740170749402,0.03884278,169.48,169.46,5.9038]
[1740170749702,194.0,169.55,169.45,0.04351802]
[1740170750195,194.0,169.55,169.48,5.903]
[1740170750401,194.0,169.55,169.44,15.10225232]
[1740170750800,0.04065514,169.51,169.48,0.04461204]
[1740170754903,5.9028,169.5,169.48,0.04461204]
[1740170755108,0.04065514,169.51,169.4,1.8575]
[1740170755302,1.01089036,169.51,169.4,1.8575]
[1740170755807,5.9039,169.46,169.4,1.8575]
[1740170756302,0.04316748,169.45,169.41,0.04399877]
[1740170756507,5.9047,169.44,169.41,0.04399877]
[1740170756707,0.04316748,169.45,169.41,0.04399877]
[1740170757407,5.9046,169.44,169.41,0.04399877]
[1740170758310,0.04316748,169.45,169.41,0.04399877]
[1740170761909,0.04316748,169.45,169.41,5.94929877]
[1740170762206,0.04316748,169.45,169.42,15.10225232]
[1740170762409,194.0,169.5,169.42,15.10225232]
[1740170762611,11.774,169.56,169.42,15.10225232]
[1740170762810,1.01082189,169.55,169.42,15.10225232]
[1740170763413,0.0391504,169.5,169.47,0.04265833]
[1740170767718,5.9008,169.55,169.48,5.9031]
[1740170767913,5.9008,169.55,169.47,0.04265833]
[1740170768113,3.474,169.56,169.47,0.04265833]
[1740170768418,4.64,169.58,169.47,0.04265833]
[1740170768612,4.64,169.58,169.48,15.10225232]
[1740170768817,10.54,169.58,169.51,5.9019]
[1740170769017,0.04308899,169.55,169.51,0.03950991]
[1740170769414,5.9018,169.52,169.51,0.03950991]
[1740170770220,1.01068526,169.52,169.36,15.10225232]
[1740170770421,2.71098526,169.53,169.37,3.6001]
[1740170770610,5.903,169.49,169.39,15.10225232]
[1740170771217,0.04461334,169.46,169.42,0.04338218]
[1740170771722,0.04461334,169.46,169.43,5.9047]
[1740170771921,0.04461334,169.46,169.42,0.04338218]
[1740170772820,0.04461334,169.46,169.45,5.9042]
[1740170773017,5.9026,169.5,169.42,0.04338218]
[1740170773320,1.7003,169.53,169.43,5.9049]
[1740170773518,5.9039,169.46,169.4,1.777]
[1740170773820,15.10225232,169.51,169.4,1.777]
[1740170774024,5.9038,169.47,169.4,7.6827]
[1740170774227,5.94843727,169.47,169.44,0.04499215]
[1740170775724,5.904,169.46,169.44,0.04499215]
[1740170777326,5.94823727,169.47,169.44,0.04499215]
[1740170777526,0.04463727,169.47,169.44,0.04499215]
[1740170777825,5.9042,169.46,169.44,0.04499215]
[1740170778228,0.04463727,169.47,169.44,0.04499215]
[1740170778525,5.94843727,169.47,169.44,0.04499215]
[1740170778831,0.04463727,169.47,169.44,0.04499215]
[1740170780728,0.04463727,169.47,169.44,5.94949215]
[1740170781028,0.04463727,169.47,169.44,0.04499215]
[1740170781223,0.04463727,169.47,169.45,5.9042]
[1740170781419,0.04463727,169.47,169.44,0.04499215]
[1740170782030,0.04463727,169.47,169.45,5.904]
[1740170782328,1.7003,169.53,169.44,0.04499215]
[1740170782524,26.86565232,169.57,169.44,15.14724447]
[1740170782731,1.01063249,169.56,169.44,15.10225232]
[1740170782925,1.01063249,169.56,169.45,3.635]
[1740170783525,0.04270957,169.52,169.49,0.03781987]
[1740170792233,0.04270957,169.52,169.49,5.94061987]
[1740170792737,0.04270957,169.52,169.49,0.03781987]
[1740170795839,5.9025,169.5,169.49,0.03781987]
[1740170796039,0.04270957,169.52,169.49,0.03781987]
[1740170796238,5.9024,169.51,169.49,0.03781987]
[1740170796439,0.04270957,169.52,169.49,0.03781987]
[1740170797442,0.04270957,169.52,169.5,5.9022]
[1740170798840,0.04270957,169.52,169.49,0.03781987]
[1740170799140,9.9808,169.61,169.49,0.03781987]
[1740170799537,5.9001,169.57,169.52,5.9017]
[1740170800040,1.7008,169.61,169.52,5.9017]
[1740170800240,0.04430207,169.56,169.53,0.04155598]
[1740170802539,0.04430207,169.56,169.53,5.94295598]
[1740170803840,0.04430207,169.56,169.54,5.9009]
[1740170804142,0.04430207,169.56,169.53,0.04155598]
[1740170804547,0.04430207,169.56,169.55,5.9007]
[1740170805645,1.01012985,169.62,169.56,5.9002]
[1740170806643,0.04410285,169.61,169.57,0.04277206]
[1740170807145,0.04410285,169.61,169.57,5.94277206]
[1740170807541,0.04410285,169.61,169.57,0.04277206]
[1740170808148,0.04410285,169.61,169.57,5.94257206]
[1740170808749,0.04410285,169.61,169.58,5.8997]
[1740170809048,0.04410285,169.61,169.57,0.04277206]
[1740170810552,0.04410285,169.61,169.58,5.8997]
[1740170810753,0.04410285,169.61,169.57,0.04277206]
[1740170810952,5.94290285,169.61,169.57,0.04277206]
[1740170811441,0.04410285,169.61,169.58,5.8997]
[1740170811647,0.04410285,169.61,169.57,0.04277206]
[1740170812147,0.04410285,169.61,169.57,5.94267206]
[1740170813452,0.04410285,169.61,169.58,5.8997]
[1740170813753,0.04410285,169.61,169.57,0.04277206]
[1740170816156,5.94300285,169.61,169.57,0.04277206]
[1740170818159,0.04410285,169.61,169.57,0.04277206]
[1740170818659,0.04410285,169.61,169.57,5.94277206]
[1740170819258,0.04410285,169.61,169.57,0.04277206]
[1740170819762,5.94290285,169.61,169.57,0.04277206]
[1740170820463,0.04410285,169.61,169.57,0.04277206]
[1740170821159,5.94300285,169.61,169.57,0.04277206]
[1740170822960,5.8991,169.6,169.57,0.04277206]
[1740170823262,0.04410285,169.61,169.57,0.04277206]
[1740170823562,5.8993,169.6,169.57,0.04277206]
[1740170824160,0.04410285,169.61,169.57,0.04277206]
[1740170824361,5.8994,169.59,169.57,0.04277206]
[1740170824766,0.04410285,169.61,169.57,0.04277206]
[1740170824961,5.8993,169.6,169.57,0.04277206]
[1740170825863,5.8997,169.58,169.57,0.04277206]
[1740170826367,0.04410285,169.61,169.57,0.04277206]
[1740170826563,5.8996,169.59,169.57,0.04277206]
[1740170826964,0.04410285,169.61,169.57,0.04277206]
[1740170827758,5.8994,169.59,169.57,0.04277206]
[1740170827958,0.04410285,169.61,169.57,0.04277206]
[1740170828565,5.8996,169.59,169.57,0.04277206]
[1740170829068,0.04410285,169.61,169.57,0.04277206]
[1740170829370,5.8997,169.58,169.57,0.04277206]
[1740170829869,0.04410285,169.61,169.57,0.04277206]
[1740170831971,5.8992,169.6,169.57,0.04277206]
[1740170832671,5.8994,169.59,169.57,0.04277206]
[1740170833473,5.8991,169.6,169.57,0.04277206]
[1740170834073,5.8993,169.6,169.57,0.04277206]
[1740170834273,0.04410285,169.61,169.57,0.04277206]
[1740170835472,0.04410285,169.61,169.58,9.62335292]
[1740170836876,0.04410285,169.61,169.58,11.32985292]
[1740170837280,12.2915,169.67,169.62,5.8983]
[1740170837482,6.3947,169.67,169.58,11.32985292]
[1740170837780,1.7547,169.67,169.58,11.32985292]
[1740170838178,5.897,169.66,169.61,5.8984]
[1740170838477,1.7547,169.67,169.61,5.94291085]
[1740170838880,7.6516,169.67,169.61,5.94291085]
[1740170839084,1.7547,169.67,169.61,5.94291085]
[1740170839275,1.7547,169.67,169.61,0.04451085]
[1740170839476,9.62335292,169.62,169.61,0.04451085]
[1740170840179,9.62335292,169.64,169.61,0.04451085]
[1740170840582,5.8983,169.63,169.61,0.04451085]
[1740170841084,9.62335292,169.64,169.61,0.04451085]
[1740170841281,5.8983,169.62,169.61,0.04451085]
[1740170841585,9.62335292,169.62,169.5,68.03183725]
[1740170841777,1.767,169.66,169.5,58.40848433]
[1740170842088,1.01008527,169.65,169.57,9.62335292]
[1740170842284,195.7547,169.67,169.57,9.62335292]
[1740170842285,5.898,169.63,169.59,5.8992]
[1740170842481,11.37805292,169.67,169.54,9.62335292]
[1740170842682,0.04121964,169.63,169.59,0.04419661]
[1740170843378,0.04121964,169.63,169.61,5.8985]
[1740170844077,0.04121964,169.63,169.59,0.04419661]
[1740170844078,0.04121964,169.63,169.6,5.899]
[1740170844283,0.04121964,169.63,169.59,0.04419661]
[1740170844483,5.93931964,169.63,169.59,0.04419661]
[1740170844685,0.04121964,169.63,169.59,0.04419661]
[1740170845087,5.899,169.6,169.59,0.04419661]
[1740170845590,15.07603132,169.63,169.51,1.8182]
[1740170845591,5.9008,169.55,169.51,1.8182]
[1740170845985,8.28,169.62,169.5,58.40848433]
[1740170846189,15.03481168,169.6,169.5,58.40848433]
[1740170846389,2.76103261,169.59,169.5,58.40848433]
[1740170846585,1.01043261,169.58,169.5,58.40848433]
[1740170846791,5.9013,169.54,169.53,0.04073331]
[1740170847290,0.04156812,169.56,169.53,0.04073331]
[1740170847492,5.9008,169.55,169.53,0.04073331]
[1740170848093,0.04156812,169.56,169.53,0.04073331]
[1740170848290,0.04156812,169.56,169.53,15.07554499]
[1740170848587,0.04156812,169.56,169.53,0.04073331]
[1740170850094,5.901,169.55,169.53,0.04073331]
[1740170850287,0.04156812,169.56,169.53,0.04073331]
[1740170851890,0.04156812,169.56,169.53,5.94203331]
[1740170852088,0.04156812,169.56,169.53,0.04073331]
[1740170854096,5.901,169.55,169.53,0.04073331]
[1740170854295,0.04156812,169.56,169.53,0.04073331]
[1740170854499,5.9011,169.54,169.53,0.04073331]
[1740170854897,0.04156812,169.56,169.53,0.04073331]
[1740170855397,5.9008,169.55,169.53,0.04073331]
[1740170856098,0.04156812,169.56,169.53,0.04073331]
[1740170856398,5.9011,169.54,169.53,0.04073331]
[1740170857598,5.9021,169.51,169.5,57.65755947]
[1740170858198,11.32570488,169.58,169.46,1.8182]
[1740170858403,5.903,169.49,169.46,1.8182]
[1740170858604,0.04085132,169.54,169.5,0.04129544]
[1740170858799,0.04085132,169.54,169.43,5.54249977]
[1740170858800,8.28,169.54,169.43,5.54249977]
[1740170858999,17.73755335,169.53,169.43,5.54249977]
[1740170859301,1.01087765,169.52,169.43,5.54249977]
[1740170859501,5.9034,169.48,169.43,5.54249977]
[1740170859702,5.9034,169.48,169.39,74.99799456]
[1740170859898,0.04498009,169.47,169.44,0.03826477]
[1740170860104,5.94848009,169.47,169.44,0.03826477]
[1740170860295,0.04498009,169.47,169.44,0.03826477]
[1740170861202,5.94858009,169.47,169.44,0.03826477]
[1740170861503,0.04498009,169.47,169.44,0.03826477]
[1740170862108,0.04498009,169.47,169.44,5.94276477]
[1740170864112,5.94858009,169.47,169.44,5.94276477]
[1740170864309,0.04498009,169.47,169.44,5.94276477]
[1740170864800,0.04498009,169.47,169.45,5.9042]
[1740170865005,0.04498009,169.47,169.44,0.03826477]
[1740170865211,5.94848009,169.47,169.44,0.03826477]
[1740170865412,5.94848009,169.47,169.44,5.94276477]
[1740170865711,0.04498009,169.47,169.44,0.03826477]
[1740170868514,0.04498009,169.47,169.44,15.07307645]
[1740170868907,0.04498009,169.47,169.46,5.9039]
[1740170871012,1.7879,169.57,169.44,15.07307645]
[1740170871213,1.01052307,169.56,169.44,15.03481168]